bitfinex/quotes_ETHUSD_20260207
["timestamp","ask_amount","ask_price","bid_price","bid_amount"]
[1770480797157,0.34703261,2054.1,2047.4,30.17179605]
[1770480797363,18.69565214,2066.8,2057.8,0.06523472]
[1770480797562,6.99114889,2063.8,2060.7,12.92560318]
[1770480797767,18.69565214,2072.9,2071.5,0.06523472]
[1770480798058,0.07224385,2076.3,2074.8,0.06523472]
[1770480798355,0.08319942,2079.1,2076.3,0.06523472]
[1770480798522,19.349773,2078.9,2077.4,0.06523472]
[1770480798854,0.31763491,2078.8,2073.9,14.486447]
[1770480799056,0.54094632,2079.0,2074.2,0.06523472]
[1770480799057,0.177802,2076.9,2074.2,0.06523472]
[1770480799223,0.06523472,2076.8,2073.4,0.43625402]
[1770480799437,0.06523472,2076.8,2063.6,12.97514234]
[1770480799438,0.06523472,2070.6,2063.6,12.97514234]
[1770480799640,0.06523472,2066.5,2061.7,0.06523472]
[1770480799870,0.06523472,2067.3,2063.1,30.0]
[1770480800035,2.592886,2064.4,2063.0,0.39]
[1770480800242,0.06523472,2067.7,2063.1,3.25]
[1770480800461,2.109893,2067.7,2064.5,2.874015]
[1770480800773,0.06523472,2068.0,2064.6,0.69601037]
[1770480801082,0.06044634,2074.2,2073.7,0.46371846]
[1770480801281,0.06523472,2076.4,2072.2,0.06044634]
[1770480801282,0.06044634,2072.5,2072.2,0.06044634]
[1770480801481,0.06044634,2069.7,2069.6,1.0304428]
[1770480801666,0.06044634,2069.7,2057.2,5.40531]
[1770480801667,0.06044634,2061.0,2057.2,5.40531]
[1770480801977,0.06044634,2061.0,2051.7,0.09311224]
[1770480801978,0.00887385,2054.0,2051.7,0.09311224]
[1770480802147,0.06044634,2053.3,2049.6,0.06044633]
[1770480802352,1e-08,2047.3,2044.8,7.61754691]
[1770480802547,1e-08,2047.3,2043.4,21.8664739]
[1770480802548,0.06044634,2047.2,2046.6,0.18133902]
[1770480802766,0.06044634,2046.5,2046.1,0.17409387]
[1770480802943,0.06044634,2050.1,2046.4,0.06044634]
[1770480803137,17.4485911,2048.0,2047.3,0.15837257]
[1770480803341,17.4485911,2048.0,2043.9,4.89212856]
[1770480803342,44.6744901,2045.4,2037.8,30.0]
[1770480803578,0.4572768,2047.9,2043.1,0.001]
[1770480803877,1.46092037,2054.3,2051.3,0.01404204]
[1770480804044,0.08319942,2063.9,2055.7,0.32384343]
[1770480804241,0.08319942,2063.9,2055.8,0.30683656]
[1770480804458,22.896297,2057.7,2055.9,2.0]
[1770480804770,0.06332814,2058.6,2058.0,0.18461551]
[1770480804986,0.06332814,2058.6,2055.7,0.22286027]
[1770480804987,0.05329698,2057.7,2055.7,0.22286027]
[1770480805143,0.05835157,2055.0,2051.3,12.94531791]
[1770480805343,0.05835157,2055.2,2055.1,3.349795]
[1770480805581,0.05835157,2054.7,2053.4,0.47629]
[1770480805886,0.05835157,2054.0,2053.4,0.47629]
[1770480806042,4.496897,2052.1,2049.9,0.1355088]
[1770480806248,0.846749,2050.6,2049.7,2.295574]
[1770480806483,0.846749,2049.3,2048.8,0.22251196]
[1770480806774,0.05835157,2049.2,2045.9,30.0]
[1770480806941,0.05835157,2053.4,2048.0,0.28993654]
[1770480807142,0.065836,2049.6,2044.2,3.32769843]
[1770480807342,0.065836,2052.2,2052.0,1.577597]
[1770480807593,0.065836,2052.2,2046.0,4.751728]
[1770480807594,0.065836,2050.0,2046.0,4.751728]
[1770480807878,4.48600737,2049.9,2043.7,0.21045014]
[1770480808182,4.87258198,2052.6,2043.2,11.57370237]
[1770480808183,0.065836,2047.0,2044.9,6.535765]
[1770480808349,0.065836,2047.0,2043.2,3.17699789]
[1770480808350,0.065836,2046.8,2045.9,1.2219561]
[1770480808650,0.065836,2048.2,2045.9,1.2219561]
[1770480808651,0.065836,2049.8,2046.8,0.065836]
[1770480808979,0.065836,2049.1,2043.9,0.065836]
[1770480809142,0.065836,2052.0,2044.0,13.30418695]
[1770480809342,1e-08,2046.7,2044.0,14.02058994]
[1770480809542,0.065836,2046.3,2044.2,2.868196]
[1770480809745,0.065836,2045.1,2043.2,3.738625]
[1770480809946,0.065836,2047.5,2043.2,3.738625]
[1770480809947,1.21897703,2050.9,2047.2,1.00101091]
[1770480810243,0.065836,2053.2,2051.2,0.47761328]
[1770480810473,0.065836,2049.8,2044.9,0.065836]
[1770480810672,0.065836,2048.9,2044.6,19.742854]
[1770480810872,0.25813413,2049.9,2043.3,1.28934698]
[1770480810873,0.065836,2046.5,2043.5,0.065836]
[1770480811074,0.07090465,2047.6,2044.1,0.07090465]
[1770480811273,5.84491049,2049.0,2046.8,0.07090465]
[1770480811580,10.211676,2050.8,2046.0,0.07090465]
[1770480811798,8.731189,2050.7,2049.1,0.07090465]
[1770480811994,8.731189,2050.7,2048.8,0.07090465]
[1770480811995,0.21271395,2048.4,2046.2,0.07090465]
[1770480812199,3.424358,2050.6,2048.8,0.07090465]
[1770480812200,1.46364907,2049.7,2048.8,0.07090465]
[1770480812481,2.65420124,2050.5,2049.8,0.07090465]
[1770480812649,0.1418093,2048.8,2048.4,0.07090465]
[1770480812851,4.8768593,2050.6,2047.9,0.07090465]
[1770480812852,0.33155937,2048.9,2047.9,0.07090465]
[1770480813050,0.07090465,2047.8,2045.5,0.07090465]
[1770480813251,0.07090465,2045.3,2044.1,6.96598251]
[1770480813452,0.42876197,2047.6,2045.9,0.07090465]
[1770480813751,0.42876197,2047.6,2044.4,0.07090465]
[1770480813752,0.42876197,2050.5,2048.7,0.07090465]
[1770480813953,0.2836186,2046.5,2045.2,0.07090465]
[1770480814188,0.3253042,2048.0,2043.1,0.07190465]
[1770480814189,4.820625,2044.5,2043.2,4.89409287]
[1770480814347,0.33338181,2046.6,2044.5,0.07090465]
[1770480814548,4.12845122,2045.0,2043.2,4.89409287]
[1770480814749,4.12845122,2045.0,2043.0,1.46841136]
[1770480814750,0.32174258,2047.3,2043.0,0.07090465]
[1770480814981,0.44042605,2047.2,2042.7,0.07090465]
[1770480815289,0.07090465,2046.3,2043.4,0.07090465]
[1770480815504,0.64102908,2047.2,2043.1,0.07090465]
[1770480815505,4.94776395,2050.7,2046.2,0.07090465]
[1770480815786,0.48991358,2049.5,2047.4,0.07090465]
[1770480815952,0.07090465,2045.9,2044.2,0.07090465]
[1770480816154,2.116422,2046.2,2044.0,0.001]
[1770480816377,0.07090465,2049.0,2044.0,0.001]
[1770480816378,0.07090465,2049.9,2047.1,0.268604]
[1770480816585,0.33950865,2046.1,2043.8,0.23056535]
[1770480816754,0.33950865,2046.1,2042.9,0.001]
[1770480816755,0.07090465,2045.9,2042.9,0.001]
[1770480816952,0.07090465,2045.9,2041.8,0.1355088]
[1770480816953,12.18574874,2045.1,2042.1,0.07090465]
[1770480817198,0.28961287,2041.7,2040.7,0.003]
[1770480817354,0.07090465,2044.5,2040.7,0.003]
[1770480817555,12.18574874,2049.0,2042.2,0.79547802]
[1770480817754,0.087,2048.9,2045.2,0.07090465]
[1770480817981,0.52809496,2042.4,2041.7,0.550788]
[1770480818185,12.18574874,2048.5,2040.5,0.06611004]
[1770480818186,2.813017,2042.5,2040.5,0.06611004]
[1770480818390,0.06611004,2045.3,2041.9,0.06611004]
[1770480818575,0.23659787,2045.2,2044.8,3.310955]
[1770480818760,1.22064352,2048.1,2047.5,0.06611004]
[1770480819060,1.22064352,2048.1,2047.2,0.06611004]
[1770480819061,2.702003,2055.5,2051.0,12.08606491]
[1770480819267,0.39,2058.4,2054.8,12.08606491]
[1770480819462,0.1355088,2060.0,2053.9,0.06611004]
[1770480819463,0.1355088,2060.0,2055.6,12.08606491]
[1770480819657,1.19718131,2061.0,2059.7,12.08606491]
[1770480819856,0.06611004,2067.8,2063.1,0.06611004]
[1770480820072,0.15922228,2068.9,2066.0,0.06611004]
[1770480820073,11.0810436,2067.7,2066.0,0.06611004]
[1770480820269,0.06611004,2067.1,2064.0,0.06611004]
[1770480820599,0.51554004,2067.9,2063.0,0.06611004]
[1770480820600,0.31082403,2067.7,2063.0,0.06611004]
[1770480820759,0.06611004,2065.2,2062.7,0.06611004]
[1770480820955,0.06611004,2065.2,2060.3,42.08606491]
[1770480820956,0.06611004,2062.5,2059.0,2.081865]
[1770480821201,0.06611004,2059.9,2057.2,30.0]
[1770480821380,0.06611004,2059.9,2046.5,18.29396592]
[1770480821381,0.06611004,2057.3,2053.1,0.00345]
[1770480821559,0.06611004,2057.3,2051.1,3.29096555]
[1770480821560,0.06611004,2054.2,2053.6,0.36804904]
[1770480821759,0.77046906,2057.7,2055.7,0.19833012]
[1770480821965,0.06611004,2058.2,2054.4,0.06611004]
[1770480822202,0.33799085,2058.4,2055.7,0.06611004]
[1770480822498,4.57899136,2064.3,2060.6,0.33799085]
[1770480822665,4.57899136,2064.3,2062.3,0.64508379]
[1770480822999,1.4523625,2066.3,2065.2,0.06611004]
[1770480823289,0.06611004,2067.7,2066.3,12.08606491]
[1770480823495,2.300088,2069.8,2066.3,1.55551449]
[1770480823790,2.300088,2069.8,2063.5,0.06611004]
[1770480823791,0.06611004,2067.5,2064.7,0.06611003]
[1770480823966,0.06611004,2062.3,2060.6,0.00343]
[1770480824167,0.31943429,2063.9,2057.9,0.21147195]
[1770480824168,0.25332425,2063.9,2062.6,12.08606491]
[1770480824497,0.07276432,2064.1,2063.8,12.08606491]
[1770480824677,0.07276432,2064.3,2062.7,0.22676583]
[1770480824879,0.07276432,2064.3,2057.9,0.211088]
[1770480824880,0.07276432,2062.4,2061.2,15.50153013]
[1770480825081,0.07276432,2069.1,2064.3,0.07276432]
[1770480825259,4.82718671,2071.9,2064.7,0.43658592]
[1770480825458,1.51600807,2077.1,2062.5,3.21195172]
[1770480825459,0.07276432,2068.4,2064.8,12.23665575]
[1770480825697,0.07276432,2067.0,2066.7,8.8e-05]
[1770480825884,0.07276432,2065.0,2062.7,4.141735]
[1770480826084,0.07276432,2066.2,2061.9,1.29566115]
[1770480826085,0.07276432,2068.9,2065.3,4.141735]
[1770480826305,0.07276432,2068.9,2062.8,0.36040488]
[1770480826306,0.07276432,2062.5,2061.2,0.00343]
[1770480826526,0.07276432,2062.5,2060.3,3.2478182]
[1770480826527,0.07276432,2064.5,2060.8,15.52794154]
[1770480826669,0.00343,2064.5,2063.3,0.01464811]
[1770480826865,0.00343,2064.5,2060.3,3.2478182]
[1770480826866,0.07276432,2065.2,2060.3,3.2478182]
[1770480827064,0.07276432,2068.1,2064.6,21.854979]
[1770480827271,14.96914912,2069.2,2064.7,0.087]
[1770480827490,12.2799335,2069.2,2064.8,0.3174923]
[1770480827664,12.59283535,2069.2,2060.5,0.00344]
[1770480827866,0.1355088,2072.4,2069.7,0.50957954]
[1770480828186,0.08319942,2074.1,2065.7,4.796483]
[1770480828187,0.15324874,2070.1,2065.7,4.796483]
[1770480828519,0.15596374,2074.1,2071.5,1.02267946]
[1770480828673,0.07276432,2075.8,2065.8,0.62588523]
[1770480828674,0.20827312,2077.2,2076.0,0.45335566]
[1770480828870,0.25264865,2077.6,2071.9,3.195548]
[1770480829198,0.1355088,2080.3,2071.6,0.2992683]
[1770480829364,0.25185265,2078.1,2072.1,15.803506]
[1770480829567,0.1355088,2080.3,2072.3,4.618907]
[1770480829568,0.07276432,2078.0,2072.3,4.618907]
[1770480829791,0.07276432,2076.8,2072.0,6.551567]
[1770480829995,0.07276432,2076.8,2070.1,14.063536]
[1770480830195,0.07276432,2076.8,2071.3,7.076424]
[1770480830412,1.20276871,2078.6,2070.0,1.20772946]
[1770480830413,12.35216942,2076.0,2070.0,1.20772946]
[1770480830573,12.35216942,2076.0,2069.8,4.83091787]
[1770480830574,0.5273203,2071.3,2069.8,4.73405295]
[1770480830774,0.0430203,2069.8,2068.8,0.07276432]
[1770480830975,0.0430203,2069.8,2058.1,8.69326087]
[1770480830976,0.07276432,2062.2,2058.1,8.69326087]
[1770480831192,15.01452746,2062.1,2056.9,0.15897128]
[1770480831376,6.110945,2065.7,2054.0,1.85714945]
[1770480831377,0.07276432,2057.3,2054.0,0.08669235]
[1770480831577,12.38199163,2058.0,2046.8,0.087]
[1770480831772,0.07276432,2050.4,2050.0,0.07276431]
[1770480831970,0.07276432,2053.2,2052.0,0.21829295]
[1770480832199,12.38199163,2057.8,2053.2,0.07276432]
[1770480832200,0.04105729,2054.7,2053.2,0.07276432]
[1770480832387,27.39651909,2057.8,2050.0,4.263271]
[1770480832388,1e-08,2050.9,2050.0,4.263271]
[1770480832594,12.18574874,2057.6,2047.9,0.13782157]
[1770480832798,15.01452746,2057.7,2053.5,0.29105729]
[1770480832970,8.31809,2057.4,2050.2,5.347507]
[1770480833169,2.116422,2057.4,2050.2,5.21576112]
[1770480833379,15.01452746,2057.5,2050.4,3.1801]
[1770480833380,11.851278,2057.2,2050.4,3.1801]
[1770480833616,12.18574874,2057.0,2037.6,22.68899389]
[1770480833786,4.642779,2057.1,2049.8,4.87781083]
[1770480833787,0.55885046,2050.3,2049.8,4.87781083]
[1770480833990,0.41372903,2057.1,2052.8,0.50741246]
[1770480833991,0.26769379,2057.1,2052.8,0.50741246]
[1770480834188,0.4858,2058.5,2049.2,19.99902609]
[1770480834189,0.37533088,2057.0,2049.2,19.99902609]
[1770480834394,12.18574874,2056.5,2049.6,9.75562]
[1770480834599,0.4858,2057.3,2049.6,9.500965]
[1770480834600,12.18574874,2056.3,2049.6,9.500965]
[1770480834806,0.4858,2057.3,2036.9,12.08606491]
[1770480834807,0.457567,2051.7,2051.2,0.706624]
[1770480835012,0.457567,2051.7,2045.6,0.24259614]
[1770480835013,12.18574874,2054.3,2049.1,0.45931434]
[1770480835320,12.18574874,2054.3,2046.8,8.00000166]
[1770480835321,12.18574874,2049.0,2046.7,0.08319941]
[1770480835520,12.18574874,2048.8,2036.8,0.07276432]
[1770480835816,2.2182118,2050.7,2042.8,0.28392966]
[1770480835817,7.31601415,2045.9,2042.8,0.28392966]
[1770480836021,12.32125754,2044.8,2044.7,4.40350267]
[1770480836192,12.32125754,2044.8,2043.9,1.46775758]
[1770480836193,12.18574874,2044.6,2042.0,3.72554849]
[1770480836511,3.79601876,2050.8,2038.3,0.61957685]
[1770480836512,0.37137445,2044.5,2038.3,0.61957685]
[1770480836687,0.81067267,2044.5,2038.4,19.17679884]
[1770480836882,9.782711,2050.5,2038.5,11.88170558]
[1770480837079,1.27728984,2049.3,2038.6,11.679616]
[1770480837283,15.729816,2049.1,2038.7,9.188199]
[1770480837479,30.0,2048.9,2038.9,4.553906]
[1770480837708,1.10578973,2048.8,2039.0,18.97790301]
[1770480837929,0.4858,2048.6,2039.1,1.29072788]
[1770480838212,1.13175233,2060.6,2043.1,14.95780921]
[1770480838516,0.20443878,2056.4,2048.9,0.7656]
[1770480838727,9.391956,2055.8,2049.1,4.69067]
[1770480838885,0.37292671,2055.7,2049.3,10.477697]
[1770480839085,0.40518782,2055.6,2049.5,13.0]
[1770480839290,2.11506,2055.5,2049.0,18.81923938]
[1770480839491,0.75831881,2055.2,2049.0,17.425746]
[1770480839714,0.37842821,2049.0,2048.9,0.30320806]
[1770480839932,0.25538952,2046.4,2045.9,11.90792887]
[1770480840084,0.1355088,2056.0,2047.4,0.25538952]
[1770480840422,0.1355088,2060.0,2048.1,13.0]
[1770480840716,0.1355088,2060.0,2058.0,13.0]
[1770480840935,5.40741,2066.3,2058.1,11.28403283]
[1770480841086,5.40741,2066.3,2061.3,0.1355088]
[1770480841286,5.40741,2066.3,2061.7,12.08606491]
[1770480841622,0.1355088,2072.2,2068.9,12.08606491]
[1770480841623,0.2472586,2071.6,2068.9,12.08606491]
[1770480841929,0.00962909,2075.0,2066.8,12.08606491]
[1770480842083,0.00962909,2075.0,2071.7,12.08606491]
[1770480842289,4.9047363,2074.1,2073.8,12.08606491]
[1770480842621,4.9047363,2074.1,2069.7,0.00345]
[1770480842622,0.55165636,2073.1,2069.7,0.00345]
[1770480842916,0.55165636,2073.1,2065.6,0.23957082]
[1770480842917,16.868599,2069.3,2065.6,0.23957082]
[1770480843121,0.41829232,2069.6,2058.4,0.07276432]
[1770480843297,30.0,2065.3,2058.8,0.34303985]
[1770480843497,0.19059749,2065.2,2058.9,0.22116363]
[1770480843684,0.087,2068.1,2061.6,5.55262069]
[1770480843884,0.087,2068.1,2054.0,30.0]
[1770480843885,11.658245,2059.1,2054.0,30.0]
[1770480844129,0.46855843,2065.4,2054.0,30.0]
[1770480844130,1.11546343,2069.0,2060.8,3.966722]
[1770480844310,12.18574874,2067.8,2058.9,1.21424061]
[1770480844616,12.18574874,2067.2,2058.9,1.21424061]
[1770480844804,12.18574874,2066.9,2058.7,2.83864178]
[1770480845006,0.35826572,2058.9,2058.6,10.82452181]
[1770480845220,30.0,2064.0,2058.9,0.35826572]
[1770480845431,2.22088138,2064.3,2058.4,5.24456057]
[1770480845432,30.0,2064.3,2058.5,8.02544392]
[1770480845591,1.11546343,2067.7,2058.5,8.02544392]
[1770480845592,17.090831,2063.8,2058.5,8.02544392]
[1770480845785,1.12196329,2064.4,2063.5,6.43795942]
[1770480846014,14.64801596,2068.0,2063.6,4.89499672]
[1770480846222,30.28674962,2067.9,2062.3,6.18439547]
[1770480846406,5.78949439,2067.8,2062.4,4.89499672]
[1770480846593,0.75831881,2070.9,2065.7,0.56894865]
[1770480846796,10.190841,2071.0,2067.1,1e-08]
[1770480846988,0.27467273,2070.9,2063.1,3.389549]
[1770480847189,11.390218,2070.8,2062.0,7.718932]
[1770480847396,31.14049879,2070.6,2061.9,4.33513002]
[1770480847606,1.88484898,2070.7,2058.0,0.1355088]
[1770480847607,12.83653073,2067.1,2058.0,0.1355088]
[1770480847810,0.25357059,2059.2,2058.1,4.33513002]
[1770480848094,0.087,2068.5,2058.1,4.58867932]
[1770480848320,30.0,2067.6,2063.9,1.21129899]
[1770480848519,10.159839,2067.4,2063.9,1.21129899]
[1770480848724,0.28528592,2067.5,2058.1,0.2535493]
[1770480848909,30.0,2068.0,2058.1,0.2535493]
[1770480848910,0.50313355,2063.5,2059.9,4.33513002]
[1770480849224,1.14156431,2068.3,2059.9,4.33513002]
[1770480849225,30.0,2070.1,2063.5,0.44859319]
[1770480849423,2.6877677,2070.8,2060.1,6.242164]
[1770480849424,0.44859319,2063.0,2060.1,6.242164]
[1770480849625,1.14156431,2069.3,2060.3,5.194503]
[1770480849828,1.30160673,2069.2,2063.1,0.44859319]
[1770480850030,0.36476259,2062.4,2060.3,4.02810759]
[1770480850199,0.44859319,2062.6,2059.9,1.21364606]
[1770480850399,0.27665664,2067.1,2060.0,4.02810759]
[1770480850602,5.19505,2066.9,2062.6,0.89718638]
[1770480850802,0.44780145,2066.8,2062.2,2.29305]
[1770480850996,1.14156431,2070.6,2062.7,0.52190399]
[1770480851304,1.14156431,2070.6,2062.3,4.02810759]
[1770480851305,14.312739,2070.4,2062.9,2.984477]
[1770480851494,5.818567,2070.2,2062.9,2.984477]
[1770480851693,10.095014,2070.4,2064.1,12.220257]
[1770480851899,10.095014,2070.4,2064.0,0.07276432]
[1770480851900,0.39991635,2070.3,2063.1,6.156338]
[1770480852122,30.2880364,2070.2,2063.6,2.82788]
[1770480852396,30.2880364,2070.2,2063.3,0.33537282]
[1770480852397,5.07078446,2070.1,2063.3,0.33537282]
[1770480852597,3.453539,2069.8,2063.7,0.64376059]
[1770480852850,0.37379448,2069.7,2063.9,11.321983]
[1770480853137,0.37379448,2069.7,2062.2,0.087]
[1770480853138,1.14156431,2074.7,2064.3,12.50700342]
[1770480853320,22.13705234,2072.1,2064.5,7.011508]
[1770480853505,30.0,2072.0,2064.4,3.95532563]
[1770480853705,30.0,2071.8,2064.4,3.95532563]
[1770480853921,1.14156431,2070.8,2064.4,3.95532563]
[1770480854221,30.0,2070.6,2064.4,3.95532563]
[1770480854549,1.48774822,2070.7,2064.9,0.07276432]
[1770480854550,30.0,2070.3,2064.9,0.07276432]
[1770480854733,1.14156431,2068.8,2061.5,0.07276432]
[1770480854945,2.64692583,2068.7,2063.1,0.07276432]
[1770480855234,22.653454,2068.5,2063.2,3.70193516]
[1770480855398,0.34508504,2068.4,2060.6,0.07276432]
[1770480855602,31.14156431,2068.2,2060.7,3.2175728]
[1770480855819,3.48960284,2068.5,2059.7,3.1206947]
[1770480855820,30.0,2066.0,2059.7,3.1206947]
[1770480856020,30.0,2066.0,2062.9,0.07276432]
[1770480856021,12.15115114,2065.2,2062.9,0.07276432]
[1770480856210,12.15115114,2065.2,2057.9,0.07276432]
[1770480856211,0.14552864,2061.3,2061.1,0.07276432]
[1770480856433,0.3638216,2057.1,2057.0,0.07276432]
[1770480856609,0.3638216,2057.1,2055.3,0.07276432]
[1770480856610,17.22275671,2058.2,2057.7,0.07276432]
[1770480856809,0.01144307,2058.7,2058.5,0.07276432]
[1770480857047,0.07276432,2057.3,2055.3,0.4868]
[1770480857237,0.1314232,2056.9,2056.6,0.41403568]
[1770480857408,0.14552864,2058.0,2056.6,0.41403568]
[1770480857409,0.07276432,2061.1,2057.0,0.1314232]
[1770480857609,0.07276432,2060.2,2057.1,0.36492473]
[1770480857837,0.07276432,2059.9,2057.8,0.41403568]
[1770480858041,0.07276432,2061.5,2055.3,1.21630826]
[1770480858042,0.07276432,2058.4,2055.3,1.21630826]
[1770480858208,0.37709116,2057.8,2056.0,0.07276432]
[1770480858542,0.07276432,2061.1,2055.3,1.21634445]
[1770480858543,0.07101403,2059.3,2057.5,0.07276432]
[1770480858750,0.07276432,2058.0,2055.3,1.28910877]
[1770480859036,0.07101403,2059.3,2057.1,0.07276432]
[1770480859037,0.01144307,2059.2,2057.1,0.07276432]
[1770480859238,0.01144307,2059.2,2056.2,0.07276432]
[1770480859239,0.07101403,2059.3,2055.3,3.41811823]
[1770480859440,0.07101403,2059.3,2053.7,0.07276432]
[1770480859441,0.14552864,2057.1,2053.5,0.07276432]
[1770480859650,0.14552864,2057.1,2051.7,0.16587656]
[1770480859651,16.194652,2054.5,2052.1,0.07276432]
[1770480859810,0.19835271,2053.7,2053.1,0.07276432]
[1770480860009,1.48079602,2059.2,2052.9,2.65198]
[1770480860010,19.557331,2056.8,2052.9,2.65198]
[1770480860206,30.0,2056.8,2052.7,0.06815305]
[1770480860414,0.02526224,2055.7,2051.7,1.31155581]
[1770480860649,2.243065,2055.6,2052.9,0.06815305]
[1770480860950,2.243065,2055.6,2051.7,0.16126529]
[1770480860951,0.07101403,2052.1,2050.7,0.06815305]
[1770480861247,0.07101403,2052.1,2049.0,0.06815305]
[1770480861248,30.0,2052.0,2046.7,0.08319942]
[1770480861549,0.06815305,2052.7,2051.7,0.06815305]
[1770480861550,0.37371429,2052.7,2051.7,0.06815305]
[1770480861752,30.0,2058.1,2051.4,0.06815305]
[1770480861967,30.0,2057.8,2051.5,2.642159]
[1770480862247,30.0,2057.5,2051.4,0.0127545]
[1770480862447,30.0,2057.3,2050.4,0.06815305]
[1770480862618,30.0,2057.3,2049.6,0.06815305]
[1770480862619,12.15115114,2053.9,2049.0,0.25480868]
[1770480862824,1.93198904,2057.2,2045.7,0.06815305]
[1770480862825,6.71867189,2053.8,2049.9,0.06815305]
[1770480863009,0.06815305,2053.6,2050.3,1.21931367]
[1770480863212,5.619038,2053.9,2050.5,0.06815305]
[1770480863441,0.06815305,2054.9,2050.3,0.73122309]
[1770480863442,5.168596,2053.4,2050.4,0.06815305]
[1770480863648,0.06815305,2050.5,2049.7,0.85390387]
[1770480863845,0.2766457,2053.8,2048.6,0.06815305]
[1770480864144,0.2766457,2053.8,2047.4,0.06815305]
[1770480864145,0.06815305,2051.8,2049.4,0.06815305]
[1770480864355,0.06815305,2050.0,2047.9,0.73104183]
[1770480864607,0.06815305,2051.1,2048.7,0.25483333]
[1770480864768,0.06815305,2052.6,2047.0,0.44913223]
[1770480864769,0.48809,2048.2,2047.0,0.44913223]
[1770480864925,0.06815305,2047.8,2046.5,0.24014074]
[1770480865116,0.06815305,2047.2,2045.3,0.25456533]
[1770480865312,0.06815305,2048.1,2045.2,1.22232996]
[1770480865558,13.183388,2048.0,2045.2,0.71765143]
[1770480865716,0.06815305,2047.1,2040.6,12.50700342]
[1770480865919,0.06815305,2047.1,2040.1,0.06815305]
[1770480865920,2.19161195,2048.0,2044.9,4.8900645]
[1770480866215,2.19161195,2048.0,2041.9,12.9633489]
[1770480866216,3.62793149,2046.7,2041.9,12.9633489]
[1770480866442,0.06352464,2047.0,2045.4,1.22225481]
[1770480866644,0.06352464,2047.0,2044.2,1.46751429]
[1770480866645,0.06352464,2048.5,2048.2,0.47725803]
[1770480866850,1.88999342,2049.4,2047.5,0.06352464]
[1770480867079,0.06352464,2054.9,2047.5,0.06352464]
[1770480867080,0.19565834,2053.5,2050.6,0.06352464]
[1770480867359,1.45218819,2053.5,2049.9,0.24716381]
[1770480867649,4.86589884,2055.2,2054.0,0.24915002]
[1770480867836,4.86589884,2055.2,2054.9,0.24915002]
[1770480868016,30.0,2055.0,2048.8,0.001]
[1770480868213,3.161727,2054.7,2051.4,0.06352464]
[1770480868419,0.06352464,2051.4,2048.1,0.06352464]
[1770480868617,0.06352464,2051.4,2046.0,0.19532585]
[1770480868618,20.038017,2050.2,2046.0,0.19532585]
[1770480868850,0.06352464,2051.4,2045.6,1.22213531]
[1770480868851,0.3246025,2050.7,2045.6,1.22213531]
[1770480869052,30.0,2050.3,2049.4,0.001]
[1770480869349,12.78718183,2050.2,2047.0,0.06352464]
[1770480869554,4.680802,2051.9,2047.1,0.38795933]
[1770480869846,4.680802,2051.9,2045.7,1.22207557]
[1770480869847,1.21790812,2052.7,2049.9,0.06352464]
[1770480870024,19.296473,2052.6,2048.1,0.06352464]
[1770480870224,19.56814879,2052.6,2048.6,0.06352464]
[1770480870422,19.56814879,2052.6,2047.4,0.06352464]
[1770480870423,22.147838,2052.5,2047.2,4.588247]
[1770480870647,22.147838,2052.5,2046.2,0.06352464]
[1770480870648,0.12704928,2047.8,2046.0,0.06352464]
[1770480870819,0.12704928,2047.8,2044.8,0.06352464]
[1770480870820,12.178407,2051.6,2045.6,0.31771783]
[1770480871020,4.985312,2048.9,2045.4,0.06352464]
[1770480871253,0.29925113,2049.1,2046.8,0.06352464]
[1770480871456,0.06352013,2048.7,2046.9,0.06352464]
[1770480871646,0.59195311,2044.7,2043.7,1e-08]
[1770480871817,0.3176232,2045.4,2044.6,0.06352464]
[1770480872016,0.30385776,2048.5,2042.2,0.06352464]
[1770480872219,0.25572378,2046.8,2044.9,0.06352464]
[1770480872519,0.25572378,2046.8,2043.7,0.06352464]
[1770480872520,1.15518325,2051.3,2043.3,3.97179205]
[1770480872718,30.0,2049.9,2047.7,0.06352464]
[1770480872927,1.15518325,2051.3,2044.4,0.01179122]
[1770480872928,0.76616985,2050.4,2047.8,0.06352464]
[1770480873154,1.15518325,2051.3,2048.8,0.06352464]
[1770480873461,9.045164,2051.2,2047.3,0.06352464]
[1770480873653,5.642613,2051.2,2049.2,0.06352464]
[1770480873843,5.642613,2051.2,2047.5,0.06352464]
[1770480873844,6.26519913,2052.5,2049.3,0.06352464]
[1770480874039,6.26519913,2052.5,2046.3,0.06352464]
[1770480874040,6.26519913,2052.5,2046.6,0.06352464]
[1770480874243,6.26519913,2052.5,2046.3,0.06352464]
[1770480874244,0.19352317,2052.4,2045.9,0.31426674]
[1770480874537,0.46162719,2051.9,2046.0,44.86156]
[1770480874764,12.15115114,2051.7,2043.7,0.06352464]
[1770480874934,1.05203887,2051.8,2040.5,0.31426674]
[1770480874935,0.18472135,2042.2,2040.5,0.31426674]
[1770480875135,0.06352464,2041.8,2041.5,4.81509443]
[1770480875357,0.06352464,2040.3,2036.4,0.31426674]
[1770480875563,13.180228,2038.4,2037.7,1e-08]
[1770480875766,12.15115114,2045.0,2038.3,0.06352464]
[1770480875983,12.68677971,2047.7,2042.1,0.06352464]
[1770480876276,12.68677971,2047.7,2038.8,1.47142513]
[1770480876277,1.22231457,2045.3,2038.8,1.47142513]
[1770480876430,1.22231457,2045.3,2038.6,0.06352464]
[1770480876431,0.25594571,2044.1,2041.7,0.06352464]
[1770480876631,4.77934773,2045.7,2043.8,3.659776]
[1770480876871,0.39,2051.5,2047.8,0.06352464]
[1770480877038,0.39,2051.5,2049.1,11.72699405]
[1770480877252,0.22460762,2053.1,2050.8,1.27476574]
[1770480877451,1.46010318,2054.7,2052.5,0.06352464]
[1770480877635,16.0,2054.6,2051.8,11.72699405]
[1770480877947,0.06352464,2051.0,2049.0,11.72699405]
[1770480878161,0.06352464,2054.8,2049.2,11.72699405]
[1770480878466,1.3002464,2054.9,2049.4,11.72699405]
[1770480878467,0.06352464,2054.6,2049.4,11.72699405]
[1770480878668,0.002,2055.1,2050.9,1.21897703]
[1770480878669,0.06352464,2053.3,2050.9,1.21897703]
[1770480878833,0.06352464,2055.3,2053.6,0.06352464]
[1770480879037,0.06352464,2054.4,2053.4,0.68648686]
[1770480879232,4.86097608,2057.3,2054.4,0.06352464]
[1770480879460,4.86097608,2057.5,2054.9,11.72699405]
[1770480879667,0.06352464,2058.6,2053.5,0.27658338]
[1770480879668,0.35768275,2059.3,2058.6,11.72699405]
[1770480879866,0.06352464,2061.0,2058.7,0.27717232]
[1770480880098,0.06352464,2060.4,2059.7,0.35768275]
[1770480880370,0.06352464,2061.1,2055.2,0.234]
[1770480880371,0.06352464,2059.8,2058.8,0.33053935]